[Event "Titled Tuesday Blitz November 22 Early 2022"]
[White "Donchenko, Alexander"]
[Black "Al-Tarboush, Ward"]
[WhiteFideId "24603295"]
[BlackFideId "7601450"]
[WhiteElo "2572"]
[BlackElo "2273"]
[Result "0-1"]
[Round "02"]
[TimeControl "180+1"]
[Date "2022.11.23"]
[WhiteClock "0:00:05"]
[BlackClock "0:01:04"]

1. e4 {[%clk 0:03:00]}  c5 {[%clk 0:02:55]} 2. Nf3 {[%clk 0:03:01]}  Nc6 {[%clk 0:02:55]} 3. Bb5 {[%clk 0:03:00]}  e6 {[%clk 0:02:52]} 4. O-O {[%clk 0:03:00]}  Nge7 {[%clk 0:02:52]} 5. Re1 {[%clk 0:03:00]}  Nd4 {[%clk 0:02:48]} 6. Bf1 {[%clk 0:02:55]}  Nxf3+ {[%clk 0:02:45]} 7. Qxf3 {[%clk 0:02:56]}  Nc6 {[%clk 0:02:45]} 8. c3 {[%clk 0:02:55]}  Be7 {[%clk 0:02:45]} 9. d3 {[%clk 0:02:50]}  O-O {[%clk 0:02:44]} 10. Bf4 {[%clk 0:02:48]}  f5 {[%clk 0:02:43]} 11. exf5 {[%clk 0:02:37]}  Rxf5 {[%clk 0:02:42]} 12. Qe3 {[%clk 0:02:37]}  Qf8 {[%clk 0:02:40]} 13. Bg3 {[%clk 0:02:36]}  d6 {[%clk 0:02:34]} 14. Nd2 {[%clk 0:02:35]}  e5 {[%clk 0:02:33]} 15. a3 {[%clk 0:02:28]}  Be6 {[%clk 0:02:25]} 16. b4 {[%clk 0:02:27]}  h5 {[%clk 0:02:16]} 17. h3 {[%clk 0:02:13]}  cxb4 {[%clk 0:02:14]} 18. axb4 {[%clk 0:02:12]}  d5 {[%clk 0:02:07]} 19. b5 {[%clk 0:02:07]}  h4 {[%clk 0:02:03]} 20. Bh2 {[%clk 0:02:05]}  Bc5 {[%clk 0:02:03]} 21. d4 {[%clk 0:02:05]}  Nxd4 {[%clk 0:01:57]} 22. cxd4 {[%clk 0:01:39]}  Bxd4 {[%clk 0:01:58]} 23. Qxd4 {[%clk 0:01:39]}  exd4 {[%clk 0:01:52]} 24. Rxe6 {[%clk 0:01:40]}  Rxf2 {[%clk 0:01:51]} 25. Nf3 {[%clk 0:01:40]}  Rb2 {[%clk 0:01:48]} 26. Bd6 {[%clk 0:01:29]}  Qf5 {[%clk 0:01:46]} 27. Rae1 {[%clk 0:01:24]}  Rc8 {[%clk 0:01:43]} 28. R6e5 {[%clk 0:01:20]}  Qg6 {[%clk 0:01:39]} 29. Nxh4 {[%clk 0:01:13]}  Qxd6 {[%clk 0:01:37]} 30. Nf5 {[%clk 0:01:13]}  Qc5 {[%clk 0:01:22]} 31. Ne7+ {[%clk 0:01:12]}  Kf7 {[%clk 0:01:22]} 32. Rf5+ {[%clk 0:01:07]}  Ke8 {[%clk 0:01:17]} 33. Nxc8+ {[%clk 0:01:00]}  Kd8 {[%clk 0:01:17]} 34. Bd3 {[%clk 0:00:34]}  Kxc8 {[%clk 0:01:06]} 35. Rf7 {[%clk 0:00:30]}  Kd8 {[%clk 0:01:05]} 36. Bf5 {[%clk 0:00:12]}  d3+ {[%clk 0:01:05]} 37. Kh1 {[%clk 0:00:12]}  Re2 {[%clk 0:01:05]} 38. Rd1 {[%clk 0:00:05]}  d2 {[%clk 0:01:04]} 0-1


[Site "https://www.chess.com"]

[Event "Titled Tuesday Blitz November 22 Early 2022"]
[White "Donskov, Anatoly"]
[Black "Kriti Mayur Patel"]
[WhiteFideId "24143413"]
[BlackFideId "35061780"]
[WhiteElo "2219"]
[BlackElo "1306"]
[Result "1-0"]
[Round "02"]
[TimeControl "180+1"]
[Date "2022.11.23"]
[WhiteClock "0:01:16"]
[BlackClock "0:00:14"]

1. e4 {[%clk 0:02:53]}  e5 {[%clk 0:02:09]} 2. Nf3 {[%clk 0:02:45]}  Nc6 {[%clk 0:02:06]} 3. Bb5 {[%clk 0:02:43]}  a6 {[%clk 0:02:05]} 4. Ba4 {[%clk 0:02:43]}  Nf6 {[%clk 0:02:06]} 5. Qe2 {[%clk 0:02:44]}  b5 {[%clk 0:02:04]} 6. Bb3 {[%clk 0:02:44]}  Bc5 {[%clk 0:02:02]} 7. a4 {[%clk 0:02:44]}  Rb8 {[%clk 0:02:00]} 8. O-O {[%clk 0:02:43]}  O-O {[%clk 0:01:58]} 9. c3 {[%clk 0:02:44]}  d6 {[%clk 0:01:56]} 10. Rd1 {[%clk 0:02:40]}  Bg4 {[%clk 0:01:52]} 11. h3 {[%clk 0:02:40]}  Bh5 {[%clk 0:01:51]} 12. d3 {[%clk 0:02:40]}  h6 {[%clk 0:01:49]} 13. axb5 {[%clk 0:02:40]}  axb5 {[%clk 0:01:46]} 14. Nbd2 {[%clk 0:02:40]}  Qd7 {[%clk 0:01:42]} 15. Nf1 {[%clk 0:02:39]}  Ne7 {[%clk 0:01:40]} 16. d4 {[%clk 0:02:31]}  exd4 {[%clk 0:01:27]} 17. cxd4 {[%clk 0:02:32]}  Bb6 {[%clk 0:01:22]} 18. Ng3 {[%clk 0:02:32]}  Bg6 {[%clk 0:01:11]} 19. Nh4 {[%clk 0:02:20]}  Rfe8 {[%clk 0:01:07]} 20. Qf3 {[%clk 0:02:18]}  Bh7 {[%clk 0:00:55]} 21. Bxh6 {[%clk 0:02:13]}  Ng6 {[%clk 0:00:48]} 22. Nhf5 {[%clk 0:01:56]}  gxh6 {[%clk 0:00:39]} 23. Nxh6+ {[%clk 0:01:57]}  Kg7 {[%clk 0:00:38]} 24. Ngf5+ {[%clk 0:01:56]}  Kf8 {[%clk 0:00:33]} 25. Bxf7 {[%clk 0:01:47]}  Rxe4 {[%clk 0:00:30]} 26. Ng3 {[%clk 0:01:46]}  Rf4 {[%clk 0:00:29]} 27. Qe3 {[%clk 0:01:29]}  Rh4 {[%clk 0:00:25]} 28. Ngf5 {[%clk 0:01:23]}  Re4 {[%clk 0:00:22]} 29. Qg5 {[%clk 0:01:22]}  Rf4 {[%clk 0:00:18]} 30. Qxf6 {[%clk 0:01:18]}  Qd8 {[%clk 0:00:14]} 31. Qg7# {[%clk 0:01:16]} 1-0


[Site "https://www.chess.com"]

[Event "Titled Tuesday Blitz November 22 Early 2022"]
[White "Dudzinski, Pawel"]
[Black "Savic, Miroslav"]
[WhiteFideId "1117890"]
[BlackFideId "14508494"]
[WhiteElo "2086"]
[BlackElo "2209"]
[Result "1/2-1/2"]
[Round "02"]
[TimeControl "180+1"]
[Date "2022.11.23"]
[WhiteClock "0:00:22"]
[BlackClock "0:00:33"]

1. e4 {[%clk 0:02:44]}  c5 {[%clk 0:02:58]} 2. Nc3 {[%clk 0:02:43]}  Nc6 {[%clk 0:02:58]} 3. g3 {[%clk 0:02:44]}  g6 {[%clk 0:02:57]} 4. Bg2 {[%clk 0:02:44]}  Bg7 {[%clk 0:02:58]} 5. d3 {[%clk 0:02:44]}  d6 {[%clk 0:02:54]} 6. Be3 {[%clk 0:02:44]}  Nd4 {[%clk 0:02:53]} 7. Qd2 {[%clk 0:02:44]}  Nf6 {[%clk 0:02:49]} 8. h3 {[%clk 0:02:43]}  e5 {[%clk 0:02:49]} 9. Nd1 {[%clk 0:02:33]}  O-O {[%clk 0:02:46]} 10. c3 {[%clk 0:02:28]}  Ne6 {[%clk 0:02:42]} 11. Ne2 {[%clk 0:02:26]}  d5 {[%clk 0:02:42]} 12. exd5 {[%clk 0:01:59]}  Nxd5 {[%clk 0:02:40]} 13. Bh6 {[%clk 0:01:59]}  f5 {[%clk 0:02:31]} 14. Bxg7 {[%clk 0:01:58]}  Kxg7 {[%clk 0:02:30]} 15. Ne3 {[%clk 0:01:57]}  Nxe3 {[%clk 0:02:21]} 16. fxe3 {[%clk 0:01:57]}  Qd6 {[%clk 0:02:19]} 17. O-O {[%clk 0:01:46]}  Rd8 {[%clk 0:02:15]} 18. Rad1 {[%clk 0:01:45]}  e4 {[%clk 0:02:07]} 19. d4 {[%clk 0:01:41]}  cxd4 {[%clk 0:02:07]} 20. Nxd4 {[%clk 0:01:37]}  Nxd4 {[%clk 0:02:00]} 21. Qxd4+ {[%clk 0:01:36]}  Qxd4 {[%clk 0:01:58]} 22. Rxd4 {[%clk 0:01:31]}  Rxd4 {[%clk 0:01:53]} 23. cxd4 {[%clk 0:01:32]}  Be6 {[%clk 0:01:52]} 24. Rc1 {[%clk 0:01:31]}  Rc8 {[%clk 0:01:48]} 25. Rxc8 {[%clk 0:01:30]}  Bxc8 {[%clk 0:01:48]} 26. h4 {[%clk 0:01:30]}  Be6 {[%clk 0:01:47]} 27. a3 {[%clk 0:01:29]}  Bc4 {[%clk 0:01:43]} 28. Kf2 {[%clk 0:01:27]}  h6 {[%clk 0:01:42]} 29. g4 {[%clk 0:01:22]}  Kf6 {[%clk 0:01:30]} 30. gxf5 {[%clk 0:01:18]}  Kxf5 {[%clk 0:01:30]} 31. Bh3+ {[%clk 0:01:16]}  Kf6 {[%clk 0:01:28]} 32. Bc8 {[%clk 0:01:09]}  Bd5 {[%clk 0:01:24]} 33. Kg3 {[%clk 0:01:04]}  b6 {[%clk 0:01:19]} 34. Kf4 {[%clk 0:01:02]}  g5+ {[%clk 0:01:18]} 35. hxg5+ {[%clk 0:01:03]}  hxg5+ {[%clk 0:01:18]} 36. Kg4 {[%clk 0:00:59]}  Bc4 {[%clk 0:01:16]} 37. Bb7 {[%clk 0:00:46]}  Be2+ {[%clk 0:01:14]} 38. Kg3 {[%clk 0:00:45]}  Bf3 {[%clk 0:01:14]} 39. Bc8 {[%clk 0:00:43]}  Be2 {[%clk 0:00:59]} 40. Bb7 {[%clk 0:00:40]}  Bf3 {[%clk 0:00:58]} 41. Ba6 {[%clk 0:00:37]}  Kg6 {[%clk 0:00:55]} 42. Bf1 {[%clk 0:00:36]}  Kf5 {[%clk 0:00:54]} 43. Bh3+ {[%clk 0:00:31]}  Kf6 {[%clk 0:00:54]} 44. Bg4 {[%clk 0:00:26]}  Bxg4 {[%clk 0:00:43]} 45. Kxg4 {[%clk 0:00:27]}  Kg6 {[%clk 0:00:42]} 46. d5 {[%clk 0:00:26]}  Kf6 {[%clk 0:00:43]} 47. d6 {[%clk 0:00:23]}  Ke6 {[%clk 0:00:42]} 48. Kxg5 {[%clk 0:00:24]}  Kxd6 {[%clk 0:00:42]} 49. Kf5 {[%clk 0:00:24]}  Kd5 {[%clk 0:00:42]} 50. b3 {[%clk 0:00:23]}  a6 {[%clk 0:00:41]} 51. a4 {[%clk 0:00:23]}  b5 {[%clk 0:00:35]} 52. a5 {[%clk 0:00:21]}  Kc5 {[%clk 0:00:33]} 53. Kxe4 {[%clk 0:00:22]}  Kb4 {[%clk 0:00:33]} 54. Kd3 {[%clk 0:00:20]}  Kxa5 {[%clk 0:00:33]} 55. e4 {[%clk 0:00:21]}  Kb6 {[%clk 0:00:32]} 56. e5 {[%clk 0:00:22]}  a5 {[%clk 0:00:33]} 57. Kd4 {[%clk 0:00:22]}  Kc6 {[%clk 0:00:33]} 58. e6 {[%clk 0:00:22]}  Kd6 {[%clk 0:00:32]} 59. e7 {[%clk 0:00:21]}  Kxe7 {[%clk 0:00:32]} 60. Kc5 {[%clk 0:00:22]}  a4 {[%clk 0:00:32]} 61. bxa4 {[%clk 0:00:22]}  bxa4 {[%clk 0:00:33]} 62. Kb4 {[%clk 0:00:22]}  Kd6 {[%clk 0:00:33]} 63. Kxa4 {[%clk 0:00:22]} 1/2-1/2


[Site "https://www.chess.com"]

[Event "Titled Tuesday Blitz November 22 Early 2022"]
[White "Durarbayli, Vasif"]
[Black "Sellitti, Federico"]
[WhiteFideId "13402935"]
[BlackFideId "821829"]
[WhiteElo "2586"]
[BlackElo "2585"]
[Result "0-1"]
[Round "02"]
[TimeControl "180+1"]
[Date "2022.11.23"]
[WhiteClock "0:00:02"]
[BlackClock "0:00:57"]

1. e4 {[%clk 0:03:00]}  c5 {[%clk 0:03:00]} 2. Nf3 {[%clk 0:03:00]}  Nf6 {[%clk 0:03:00]} 3. e5 {[%clk 0:02:59]}  Nd5 {[%clk 0:03:01]} 4. Nc3 {[%clk 0:02:59]}  Nxc3 {[%clk 0:03:02]} 5. dxc3 {[%clk 0:02:57]}  Nc6 {[%clk 0:03:03]} 6. Bf4 {[%clk 0:02:46]}  e6 {[%clk 0:03:03]} 7. Qd2 {[%clk 0:02:42]}  Qc7 {[%clk 0:03:04]} 8. O-O-O {[%clk 0:02:36]}  b6 {[%clk 0:03:04]} 9. h4 {[%clk 0:02:34]}  h6 {[%clk 0:03:04]} 10. h5 {[%clk 0:02:34]}  Bb7 {[%clk 0:03:05]} 11. Bc4 {[%clk 0:02:05]}  O-O-O {[%clk 0:03:03]} 12. Qe2 {[%clk 0:02:02]}  d5 {[%clk 0:02:38]} 13. exd6 {[%clk 0:01:50]}  Bxd6 {[%clk 0:02:38]} 14. Bxe6+ {[%clk 0:01:43]}  Kb8 {[%clk 0:02:27]} 15. Bxd6 {[%clk 0:01:24]}  Rxd6 {[%clk 0:02:28]} 16. Bd5 {[%clk 0:01:23]}  Rhd8 {[%clk 0:02:21]} 17. Bxc6 {[%clk 0:01:21]}  Bxc6 {[%clk 0:02:21]} 18. Rxd6 {[%clk 0:01:14]}  Qxd6 {[%clk 0:02:22]} 19. Rd1 {[%clk 0:01:02]}  Qxd1+ {[%clk 0:02:20]} 20. Qxd1 {[%clk 0:01:02]}  Rxd1+ {[%clk 0:02:21]} 21. Kxd1 {[%clk 0:01:03]}  Bxf3+ {[%clk 0:02:22]} 22. gxf3 {[%clk 0:01:03]}  Kc7 {[%clk 0:02:22]} 23. Ke2 {[%clk 0:00:51]}  Kd6 {[%clk 0:02:15]} 24. f4 {[%clk 0:00:51]}  Ke6 {[%clk 0:02:03]} 25. Kf3 {[%clk 0:00:50]}  Kf5 {[%clk 0:02:04]} 26. c4 {[%clk 0:00:46]}  g6 {[%clk 0:01:59]} 27. hxg6 {[%clk 0:00:47]}  fxg6 {[%clk 0:02:00]} 28. c3 {[%clk 0:00:39]}  h5 {[%clk 0:01:57]} 29. b4 {[%clk 0:00:38]}  a5 {[%clk 0:01:54]} 30. bxc5 {[%clk 0:00:20]}  bxc5 {[%clk 0:01:55]} 31. Kg3 {[%clk 0:00:14]}  Ke4 {[%clk 0:01:41]} 32. a4 {[%clk 0:00:11]}  h4+ {[%clk 0:01:31]} 33. Kg4 {[%clk 0:00:06]}  h3 {[%clk 0:01:02]} 34. f3+ {[%clk 0:00:01]}  Ke3 {[%clk 0:00:58]} 35. Kxh3 {[%clk 0:00:02]}  Kxf3 {[%clk 0:00:57]} 0-1


[Site "https://www.chess.com"]

[Event "Titled Tuesday Blitz November 22 Early 2022"]
[White "Erdogdu, Mert"]
[Black "Safin, Robert"]
[WhiteFideId "6301495"]
[BlackFideId "34189120"]
[WhiteElo "2413"]
[BlackElo "2253"]
[Result "1-0"]
[Round "02"]
[TimeControl "180+1"]
[Date "2022.11.23"]
[WhiteClock "0:00:55"]
[BlackClock "0:00:05"]

1. e4 {[%clk 0:03:00]}  e6 {[%clk 0:02:58]} 2. d4 {[%clk 0:03:00]}  d5 {[%clk 0:02:57]} 3. exd5 {[%clk 0:03:01]}  exd5 {[%clk 0:02:57]} 4. c4 {[%clk 0:03:02]}  Nf6 {[%clk 0:02:52]} 5. Nc3 {[%clk 0:03:02]}  Bb4 {[%clk 0:02:51]} 6. Bd3 {[%clk 0:03:03]}  O-O {[%clk 0:02:33]} 7. Ne2 {[%clk 0:03:03]}  dxc4 {[%clk 0:02:25]} 8. Bxc4 {[%clk 0:03:04]}  Nc6 {[%clk 0:02:24]} 9. O-O {[%clk 0:03:03]}  Bxc3 {[%clk 0:01:58]} 10. bxc3 {[%clk 0:03:01]}  Nd5 {[%clk 0:01:58]} 11. Bb3 {[%clk 0:02:54]}  Na5 {[%clk 0:01:53]} 12. Bc2 {[%clk 0:02:54]}  g6 {[%clk 0:01:41]} 13. Bh6 {[%clk 0:02:51]}  Re8 {[%clk 0:01:40]} 14. Re1 {[%clk 0:02:40]}  Nc4 {[%clk 0:01:27]} 15. Bb3 {[%clk 0:02:32]}  b5 {[%clk 0:01:26]} 16. Bxc4 {[%clk 0:02:08]}  bxc4 {[%clk 0:01:27]} 17. Qa4 {[%clk 0:02:05]}  Nb6 {[%clk 0:01:24]} 18. Qc6 {[%clk 0:01:52]}  Be6 {[%clk 0:01:15]} 19. Nf4 {[%clk 0:01:42]}  Qd7 {[%clk 0:01:08]} 20. Qf3 {[%clk 0:01:34]}  Bd5 {[%clk 0:00:52]} 21. Qg3 {[%clk 0:01:27]}  Rxe1+ {[%clk 0:00:41]} 22. Rxe1 {[%clk 0:01:26]}  Re8 {[%clk 0:00:41]} 23. Rxe8+ {[%clk 0:01:15]}  Qxe8 {[%clk 0:00:42]} 24. h4 {[%clk 0:01:16]}  Qd7 {[%clk 0:00:15]} 25. Nh5 {[%clk 0:01:09]}  Qd6 {[%clk 0:00:05]} 26. Qg5 {[%clk 0:00:55]} 1-0


[Site "https://www.chess.com"]

[Event "Titled Tuesday Blitz November 22 Early 2022"]
[White "Fabris, Alberto"]
[Black "Avazkhonov, Alikhon"]
[WhiteFideId "801348"]
[BlackFideId "14208504"]
[WhiteElo "2132"]
[BlackElo "1739"]
[Result "1-0"]
[Round "02"]
[TimeControl "180+1"]
[Date "2022.11.23"]
[WhiteClock "0:00:28"]
[BlackClock "0:00:04"]

1. d4 {[%clk 0:03:00]}  Nf6 {[%clk 0:02:58]} 2. Nf3 {[%clk 0:03:01]}  e6 {[%clk 0:02:59]} 3. Bf4 {[%clk 0:02:58]}  d5 {[%clk 0:02:58]} 4. e3 {[%clk 0:02:58]}  Bd6 {[%clk 0:02:58]} 5. c3 {[%clk 0:02:55]}  O-O {[%clk 0:02:58]} 6. Bd3 {[%clk 0:02:53]}  c5 {[%clk 0:02:59]} 7. Nbd2 {[%clk 0:02:52]}  Nc6 {[%clk 0:02:59]} 8. O-O {[%clk 0:02:51]}  b6 {[%clk 0:02:59]} 9. Ne5 {[%clk 0:02:49]}  Bb7 {[%clk 0:02:59]} 10. Qe2 {[%clk 0:02:48]}  Qc7 {[%clk 0:02:58]} 11. Ndf3 {[%clk 0:02:47]}  Ne4 {[%clk 0:02:56]} 12. h3 {[%clk 0:02:42]}  f6 {[%clk 0:02:45]} 13. Nxc6 {[%clk 0:02:31]}  Bxc6 {[%clk 0:02:42]} 14. Bxd6 {[%clk 0:02:26]}  Qxd6 {[%clk 0:02:32]} 15. Nd2 {[%clk 0:02:21]}  Nxd2 {[%clk 0:02:21]} 16. Qxd2 {[%clk 0:02:20]}  e5 {[%clk 0:02:22]} 17. Rad1 {[%clk 0:02:10]}  e4 {[%clk 0:02:03]} 18. Be2 {[%clk 0:02:09]}  c4 {[%clk 0:02:02]} 19. f3 {[%clk 0:02:06]}  f5 {[%clk 0:02:01]} 20. f4 {[%clk 0:02:06]}  b5 {[%clk 0:02:00]} 21. g4 {[%clk 0:02:03]}  g6 {[%clk 0:02:00]} 22. Rf2 {[%clk 0:01:57]}  a5 {[%clk 0:02:00]} 23. Rg2 {[%clk 0:01:56]}  Kh8 {[%clk 0:01:59]} 24. Kh1 {[%clk 0:01:54]}  b4 {[%clk 0:01:58]} 25. Rdg1 {[%clk 0:01:52]}  Rg8 {[%clk 0:01:50]} 26. Qe1 {[%clk 0:01:47]}  bxc3 {[%clk 0:01:36]} 27. bxc3 {[%clk 0:01:46]}  Rab8 {[%clk 0:01:30]} 28. Qh4 {[%clk 0:01:41]}  Bd7 {[%clk 0:01:09]} 29. gxf5 {[%clk 0:01:30]}  Bxf5 {[%clk 0:01:10]} 30. Bg4 {[%clk 0:01:30]}  Bxg4 {[%clk 0:00:48]} 31. Rxg4 {[%clk 0:01:28]}  Rb2 {[%clk 0:00:44]} 32. R1g2 {[%clk 0:01:21]}  Rgb8 {[%clk 0:00:40]} 33. Qg5 {[%clk 0:01:15]}  a4 {[%clk 0:00:13]} 34. h4 {[%clk 0:01:06]}  a3 {[%clk 0:00:10]} 35. h5 {[%clk 0:01:06]}  Rxg2 {[%clk 0:00:06]} 36. Rxg2 {[%clk 0:01:05]}  Rb1+ {[%clk 0:00:03]} 37. Kh2 {[%clk 0:01:05]}  Rb2 {[%clk 0:00:03]} 38. hxg6 {[%clk 0:00:59]}  Rxg2+ {[%clk 0:00:03]} 39. Kxg2 {[%clk 0:00:48]}  hxg6 {[%clk 0:00:04]} 40. f5 {[%clk 0:00:39]}  gxf5 {[%clk 0:00:03]} 41. Qxf5 {[%clk 0:00:39]}  Qc6 {[%clk 0:00:03]} 42. Qe5+ {[%clk 0:00:37]}  Kg8 {[%clk 0:00:03]} 43. Qg5+ {[%clk 0:00:35]}  Kf7 {[%clk 0:00:03]} 44. Kg3 {[%clk 0:00:35]}  Qd6+ {[%clk 0:00:03]} 45. Kg4 {[%clk 0:00:34]}  Qe6+ {[%clk 0:00:03]} 46. Qf5+ {[%clk 0:00:33]}  Qf6 {[%clk 0:00:02]} 47. Qxf6+ {[%clk 0:00:27]}  Kxf6 {[%clk 0:00:03]} 48. Kf4 {[%clk 0:00:28]}  Ke6 {[%clk 0:00:02]} 49. Kg5 {[%clk 0:00:28]}  Kd6 {[%clk 0:00:02]} 50. Kf6 {[%clk 0:00:28]}  Kd7 {[%clk 0:00:01]} 51. Ke5 {[%clk 0:00:27]}  Ke7 {[%clk 0:00:02]} 52. Kxd5 {[%clk 0:00:27]}  Kf6 {[%clk 0:00:03]} 53. Kxe4 {[%clk 0:00:28]}  Ke6 {[%clk 0:00:03]} 54. d5+ {[%clk 0:00:27]}  Kd6 {[%clk 0:00:04]} 55. Kd4 {[%clk 0:00:28]} 1-0


[Site "https://www.chess.com"]

[Event "Titled Tuesday Blitz November 22 Early 2022"]
[White "Fernandez Hernandez, Gerardo"]
[Black "Ezat, Mohamed"]
[WhiteFideId "2207400"]
[BlackFideId "10600906"]
[WhiteElo "2252"]
[BlackElo "2386"]
[Result "0-1"]
[Round "02"]
[TimeControl "180+1"]
[Date "2022.11.23"]
[WhiteClock "0:00:05"]
[BlackClock "0:00:28"]

1. e4 {[%clk 0:03:00]}  c6 {[%clk 0:02:58]} 2. d4 {[%clk 0:03:00]}  d5 {[%clk 0:02:58]} 3. exd5 {[%clk 0:03:01]}  cxd5 {[%clk 0:02:58]} 4. c4 {[%clk 0:03:02]}  Nf6 {[%clk 0:02:57]} 5. Nc3 {[%clk 0:03:02]}  g6 {[%clk 0:02:57]} 6. Qb3 {[%clk 0:03:02]}  Bg7 {[%clk 0:02:57]} 7. cxd5 {[%clk 0:03:02]}  O-O {[%clk 0:02:58]} 8. Be2 {[%clk 0:03:01]}  Na6 {[%clk 0:02:58]} 9. Bf3 {[%clk 0:02:58]}  Qb6 {[%clk 0:02:57]} 10. Qxb6 {[%clk 0:02:30]}  axb6 {[%clk 0:02:55]} 11. Nge2 {[%clk 0:02:28]}  Nb4 {[%clk 0:02:54]} 12. O-O {[%clk 0:02:28]}  Rd8 {[%clk 0:02:53]} 13. d6 {[%clk 0:02:16]}  Rxd6 {[%clk 0:02:50]} 14. Bf4 {[%clk 0:02:16]}  Rd7 {[%clk 0:02:47]} 15. a3 {[%clk 0:02:09]}  Nbd5 {[%clk 0:02:41]} 16. Bd2 {[%clk 0:01:11]}  h6 {[%clk 0:02:24]} 17. Nb5 {[%clk 0:01:01]}  g5 {[%clk 0:02:20]} 18. h3 {[%clk 0:00:55]}  Rd8 {[%clk 0:02:13]} 19. Rac1 {[%clk 0:00:53]}  Bf5 {[%clk 0:02:01]} 20. Nc7 {[%clk 0:00:43]}  Nxc7 {[%clk 0:01:41]} 21. Rxc7 {[%clk 0:00:44]}  Be4 {[%clk 0:01:31]} 22. Bxe4 {[%clk 0:00:30]}  Nxe4 {[%clk 0:01:30]} 23. Be3 {[%clk 0:00:31]}  e6 {[%clk 0:01:18]} 24. Rfc1 {[%clk 0:00:28]}  Nd6 {[%clk 0:01:17]} 25. f4 {[%clk 0:00:19]}  Bf6 {[%clk 0:01:13]} 26. fxg5 {[%clk 0:00:18]}  hxg5 {[%clk 0:01:13]} 27. Ng3 {[%clk 0:00:17]}  Nb5 {[%clk 0:01:06]} 28. Rxb7 {[%clk 0:00:16]}  Nxd4 {[%clk 0:01:04]} 29. Kf2 {[%clk 0:00:13]}  Nb3 {[%clk 0:00:58]} 30. Rcc7 {[%clk 0:00:12]}  Rf8 {[%clk 0:00:40]} 31. Nh5 {[%clk 0:00:12]}  Be5 {[%clk 0:00:40]} 32. Rd7 {[%clk 0:00:10]}  Na5 {[%clk 0:00:36]} 33. Rxb6 {[%clk 0:00:10]}  Nc4 {[%clk 0:00:36]} 34. Rbb7 {[%clk 0:00:09]}  Nxe3 {[%clk 0:00:35]} 35. Kxe3 {[%clk 0:00:10]}  Ra4 {[%clk 0:00:33]} 36. g4 {[%clk 0:00:10]}  Rc4 {[%clk 0:00:29]} 37. b4 {[%clk 0:00:08]}  Rc3+ {[%clk 0:00:28]} 38. Ke4 {[%clk 0:00:08]}  Bh8 {[%clk 0:00:28]} 39. h4 {[%clk 0:00:07]}  Rfc8 {[%clk 0:00:27]} 40. hxg5 {[%clk 0:00:05]}  R8c4+ {[%clk 0:00:27]} 41. Rd4 {[%clk 0:00:05]}  Rxd4# {[%clk 0:00:28]} 0-1


[Site "https://www.chess.com"]

[Event "Titled Tuesday Blitz November 22 Early 2022"]
[White "Firouzja, Alireza"]
[Black "Weetik, Vjacheslav"]
[WhiteFideId "12573981"]
[BlackFideId "4153472"]
[WhiteElo "2903"]
[BlackElo "2469"]
[Result "1-0"]
[Round "02"]
[TimeControl "180+1"]
[Date "2022.11.22"]
[WhiteClock "0:01:53"]
[BlackClock "0:00:03"]

1. d4 {[%clk 0:02:59]}  d5 {[%clk 0:02:58]} 2. Bg5 {[%clk 0:02:59]}  h6 {[%clk 0:02:56]} 3. Bh4 {[%clk 0:02:59]}  c6 {[%clk 0:02:56]} 4. e3 {[%clk 0:02:57]}  Qb6 {[%clk 0:02:56]} 5. b3 {[%clk 0:02:57]}  Bf5 {[%clk 0:02:55]} 6. Nf3 {[%clk 0:02:57]}  Nd7 {[%clk 0:02:44]} 7. Be2 {[%clk 0:02:57]}  Ngf6 {[%clk 0:02:43]} 8. O-O {[%clk 0:02:58]}  Ne4 {[%clk 0:02:36]} 9. c4 {[%clk 0:02:56]}  g5 {[%clk 0:02:34]} 10. Bg3 {[%clk 0:02:56]}  h5 {[%clk 0:02:28]} 11. h4 {[%clk 0:02:17]}  g4 {[%clk 0:02:26]} 12. Ng5 {[%clk 0:02:17]}  Nxg5 {[%clk 0:01:53]} 13. hxg5 {[%clk 0:02:18]}  e6 {[%clk 0:01:32]} 14. cxd5 {[%clk 0:02:17]}  exd5 {[%clk 0:01:24]} 15. Bd3 {[%clk 0:02:17]}  Be6 {[%clk 0:01:18]} 16. g6 {[%clk 0:02:14]}  Qd8 {[%clk 0:01:01]} 17. gxf7+ {[%clk 0:02:13]}  Bxf7 {[%clk 0:01:01]} 18. Nc3 {[%clk 0:02:13]}  Bb4 {[%clk 0:00:54]} 19. Rc1 {[%clk 0:02:10]}  h4 {[%clk 0:00:39]} 20. Bf4 {[%clk 0:02:10]}  Bh5 {[%clk 0:00:38]} 21. Bf5 {[%clk 0:02:04]}  g3 {[%clk 0:00:32]} 22. Qd3 {[%clk 0:02:05]}  O-O {[%clk 0:00:17]} 23. fxg3 {[%clk 0:01:59]}  hxg3 {[%clk 0:00:11]} 24. Bxg3 {[%clk 0:02:00]}  Qg5 {[%clk 0:00:11]} 25. Be6+ {[%clk 0:01:57]}  Kh8 {[%clk 0:00:09]} 26. Bf4 {[%clk 0:01:56]}  Qg7 {[%clk 0:00:07]} 27. Nxd5 {[%clk 0:01:54]}  cxd5 {[%clk 0:00:06]} 28. Bxd7 {[%clk 0:01:55]}  Rxf4 {[%clk 0:00:03]} 29. Rxf4 {[%clk 0:01:53]}  Qxd7 {[%clk 0:00:03]} 30. Rh4 {[%clk 0:01:53]} 1-0


[Site "https://www.chess.com"]

[Event "Titled Tuesday Blitz November 22 Early 2022"]
[White "Foerster-Yialamas, Lucas"]
[Black "Aydin, Gulenay"]
[WhiteFideId "30901774"]
[BlackFideId "34557431"]
[WhiteElo "2067"]
[BlackElo "2009"]
[Result "1-0"]
[Round "02"]
[TimeControl "180+1"]
[Date "2022.11.23"]
[WhiteClock "0:00:17"]
[BlackClock "0:00:08"]

1. e4 {[%clk 0:03:00]}  c6 {[%clk 0:02:56]} 2. d4 {[%clk 0:02:59]}  d5 {[%clk 0:02:57]} 3. Nc3 {[%clk 0:02:58]}  dxe4 {[%clk 0:02:54]} 4. Nxe4 {[%clk 0:02:59]}  Bf5 {[%clk 0:02:55]} 5. Ng3 {[%clk 0:02:59]}  Bg6 {[%clk 0:02:55]} 6. h4 {[%clk 0:02:52]}  h6 {[%clk 0:02:55]} 7. Nf3 {[%clk 0:02:40]}  Nd7 {[%clk 0:02:54]} 8. Bd3 {[%clk 0:02:35]}  Bxd3 {[%clk 0:02:51]} 9. Qxd3 {[%clk 0:02:36]}  e6 {[%clk 0:02:51]} 10. c3 {[%clk 0:02:27]}  Ngf6 {[%clk 0:02:51]} 11. Bf4 {[%clk 0:02:20]}  Be7 {[%clk 0:02:51]} 12. Ne5 {[%clk 0:02:07]}  Nd5 {[%clk 0:02:44]} 13. Qf3 {[%clk 0:02:02]}  Nxf4 {[%clk 0:02:41]} 14. Qxf4 {[%clk 0:02:03]}  Nxe5 {[%clk 0:02:42]} 15. Qxe5 {[%clk 0:02:04]}  Bxh4 {[%clk 0:02:36]} 16. Qxg7 {[%clk 0:01:55]}  Bf6 {[%clk 0:02:25]} 17. Qg4 {[%clk 0:01:55]}  Qb6 {[%clk 0:02:08]} 18. O-O-O {[%clk 0:01:47]}  O-O-O {[%clk 0:02:03]} 19. Ne4 {[%clk 0:01:46]}  Be7 {[%clk 0:02:01]} 20. Qg7 {[%clk 0:01:22]}  Qc7 {[%clk 0:01:52]} 21. Qxf7 {[%clk 0:01:17]}  Qd7 {[%clk 0:01:17]} 22. Kb1 {[%clk 0:00:58]}  Rdf8 {[%clk 0:01:16]} 23. Qg7 {[%clk 0:00:51]}  Qd5 {[%clk 0:00:46]} 24. Rhe1 {[%clk 0:00:44]}  Bd8 {[%clk 0:00:40]} 25. Nc5 {[%clk 0:00:40]}  Bc7 {[%clk 0:00:28]} 26. Nxe6 {[%clk 0:00:32]}  Qf5+ {[%clk 0:00:19]} 27. Ka1 {[%clk 0:00:25]}  Qf7 {[%clk 0:00:20]} 28. Nxf8 {[%clk 0:00:13]}  Qxg7 {[%clk 0:00:18]} 29. Re8+ {[%clk 0:00:13]}  Bd8 {[%clk 0:00:16]} 30. Rxd8+ {[%clk 0:00:14]}  Kxd8 {[%clk 0:00:09]} 31. Ne6+ {[%clk 0:00:15]}  Kd7 {[%clk 0:00:06]} 32. Nxg7 {[%clk 0:00:16]}  Rf8 {[%clk 0:00:07]} 33. f3 {[%clk 0:00:16]}  Rg8 {[%clk 0:00:06]} 34. Nf5 {[%clk 0:00:16]}  Rxg2 {[%clk 0:00:07]} 35. Nxh6 {[%clk 0:00:16]}  Rf2 {[%clk 0:00:07]} 36. Ng4 {[%clk 0:00:17]}  Rxf3 {[%clk 0:00:08]} 37. Ne5+ {[%clk 0:00:17]} 1-0


[Site "https://www.chess.com"]